bitfinex-derivatives/quotes_BNBF0:USTF0_20250329
["timestamp","ask_amount","ask_price","bid_price","bid_amount"]
[1743206402749,0.32247142,620.21,619.07,0.29147939]
[1743206406846,0.32247142,620.21,619.06,1.368]
[1743206407854,0.29669016,620.2,619.06,2.619]
[1743206408851,0.29672816,620.19,619.06,2.619]
[1743206409054,0.32248701,620.18,619.06,2.619]
[1743206409255,0.29672816,620.17,619.06,2.619]
[1743206409657,0.32249742,620.16,619.06,2.619]
[1743206409955,0.29672816,620.15,619.06,3.758]
[1743206410157,0.32250782,620.14,619.06,3.758]
[1743206410456,0.29672816,620.13,619.06,3.758]
[1743206410657,0.32251822,620.12,619.06,3.758]
[1743206410956,0.29672816,620.11,619.06,3.758]
[1743206411154,0.32252862,620.1,619.06,3.758]
[1743206411351,0.29672816,620.09,619.06,3.758]
[1743206411553,0.32253902,620.08,619.06,3.758]
[1743206411749,0.29672816,620.07,619.06,3.758]
[1743206411951,0.32254943,620.06,619.06,3.758]
[1743206412156,0.29672816,620.05,619.06,3.758]
[1743206412458,0.32254943,620.06,619.06,3.758]
[1743206412459,0.61931956,620.04,619.06,3.758]
[1743206412658,0.61932476,620.03,619.06,3.758]
[1743206412858,0.61932996,620.02,619.06,3.758]
[1743206413157,0.61933517,620.01,619.06,3.758]
[1743206413357,0.61934037,620.0,619.06,3.758]
[1743206413554,0.61934557,619.99,619.06,3.758]
[1743206413750,0.61935078,619.98,619.06,3.758]
[1743206413951,0.32259625,619.97,619.06,3.758]
[1743206417163,0.29684516,619.96,619.06,3.758]
[1743206417361,0.32261186,619.94,619.06,3.758]
[1743206418065,0.29684877,619.93,619.06,3.758]
[1743206418266,0.32262227,619.92,619.06,3.758]
[1743206419366,0.29686228,619.91,619.06,3.758]
[1743206419959,0.32263268,619.9,619.06,3.758]
[1743206420264,0.29686228,619.89,619.06,3.758]
[1743206420460,0.32264309,619.88,619.06,3.758]
[1743206424267,0.29685108,619.87,619.06,3.758]
[1743206424468,0.3226535,619.86,619.06,3.758]
[1743206427969,0.29687649,619.85,619.06,3.758]
[1743206428166,0.32266391,619.84,619.06,3.758]
[1743206428371,0.61954646,619.84,619.06,3.758]
[1743206428570,0.29688255,619.83,619.06,3.758]
[1743206428765,0.32267432,619.82,619.06,3.758]
[1743206428969,0.29688255,619.81,619.06,3.758]
[1743206429169,0.32268473,619.8,619.06,3.758]
[1743206429365,0.29688255,619.79,619.06,3.758]
[1743206429568,0.32269514,619.78,619.06,3.758]
[1743206429769,0.29688255,619.77,619.06,3.758]
[1743206429971,0.32270556,619.76,619.06,3.758]
[1743206430169,0.29688255,619.75,619.06,3.758]
[1743206430367,0.32271597,619.74,619.06,3.758]
[1743206430571,0.29688255,619.73,619.06,3.758]
[1743206430772,0.32272639,619.72,619.06,3.758]
[1743206431276,0.29688255,619.71,619.06,3.758]
[1743206433072,0.32272639,619.72,619.06,3.758]
[1743206442384,0.32272639,619.72,619.06,4.899]
[1743206446083,0.29689351,619.71,619.06,4.899]
[1743206446285,0.3227368,619.7,619.06,4.899]
[1743206448590,0.29689283,619.69,619.06,4.899]
[1743206448790,0.32274722,619.68,619.06,4.899]
[1743206457398,0.29692784,619.67,619.06,4.899]
[1743206457598,0.32275764,619.66,619.06,4.899]
[1743206457896,0.29692784,619.65,619.06,4.899]
[1743206458092,0.32276805,619.64,619.06,4.899]
[1743206458297,0.29692784,619.63,619.06,4.899]
[1743206458492,0.32277847,619.62,619.06,4.899]
[1743206461800,0.32277847,619.62,619.06,4.89265816]
[1743206461995,0.32277847,619.62,619.06,3.531]
[1743206463201,0.2969851,619.61,619.06,3.531]
[1743206465601,0.32277847,619.62,619.06,3.531]
[1743206474016,0.29703378,619.61,619.06,3.531]
[1743206474216,0.32277847,619.62,619.06,3.531]
[1743206474613,0.29702893,619.61,619.06,3.531]
[1743206476619,0.29702944,619.6,619.06,3.531]
[1743206476815,0.29702944,619.61,619.06,3.531]
[1743206477019,0.29702944,619.6,619.06,3.531]
[1743206477220,0.29702944,619.61,619.06,3.531]
[1743206477522,0.29702944,619.6,619.06,3.531]
[1743206477823,0.29702944,619.59,619.06,3.531]
[1743206478022,0.29702944,619.61,619.06,3.531]
[1743206478523,0.29701881,619.6,619.06,3.531]
[1743206478724,0.29701881,619.61,619.06,3.531]
[1743206478925,0.29701881,619.6,619.06,3.531]
[1743206479223,0.29701881,619.59,619.06,3.531]
[1743206479418,0.29701881,619.58,619.06,3.531]
[1743206479722,0.29701881,619.57,619.06,3.531]
[1743206479922,0.29701881,619.61,619.06,3.531]
[1743206485426,0.32277847,619.62,619.06,3.531]
[1743206485624,0.29698813,619.61,619.06,3.531]
[1743206486022,0.32277847,619.62,619.06,3.531]
[1743206487327,0.28105655,619.61,619.06,3.531]
[1743206489922,0.29700518,619.6,619.06,3.531]
[1743206490523,0.29700518,619.61,619.06,3.531]
[1743206490723,0.29700518,619.6,619.06,3.531]
[1743206491032,0.29700518,619.59,619.06,3.531]
[1743206491328,0.29701751,619.58,619.06,3.531]
[1743206491527,0.29701751,619.57,619.06,3.531]
[1743206493628,0.29701751,619.56,619.06,3.531]
[1743206493827,0.29701751,619.61,619.06,3.531]
[1743206494028,0.29701751,619.6,619.06,3.531]
[1743206494329,0.29701751,619.61,619.06,3.531]
[1743206494531,0.28115646,619.59,619.06,3.531]
[1743206494731,0.29701751,619.58,619.06,3.531]
[1743206497533,0.28115646,619.59,619.06,3.531]
[1743206497734,0.29701929,619.58,619.06,3.531]
[1743206499536,0.29701929,619.61,619.06,3.531]
[1743206500633,0.28115646,619.6,619.06,3.531]
[1743206500830,0.29701929,619.59,619.06,3.531]
[1743206502537,0.29701929,619.61,619.06,3.531]
[1743206502839,0.32277847,619.62,619.06,3.531]
[1743206503036,0.29702155,619.61,619.06,3.531]
[1743206503744,0.28115646,619.6,619.06,3.531]
[1743206504045,0.29702155,619.59,619.06,3.531]
[1743206505642,0.29702155,619.61,619.06,3.531]
[1743206505839,0.32277847,619.62,619.06,3.531]
[1743206505840,0.29702155,619.6,619.06,3.531]
[1743206506040,0.29702131,619.59,619.06,3.531]
[1743206506239,0.29702131,619.61,619.06,3.531]
[1743206506442,0.29702131,619.6,619.06,3.531]
[1743206506637,0.28115646,619.58,619.06,3.531]
[1743206506945,0.29702131,619.57,619.06,3.531]
[1743206508341,0.29702273,619.56,619.06,3.531]
[1743206508545,0.29702273,619.61,619.06,3.531]
[1743206508744,0.29702273,619.6,619.06,3.531]
[1743206508946,0.29702273,619.61,619.06,3.531]
[1743206509141,0.29702273,619.6,619.06,3.531]
[1743206509345,0.29702273,619.61,619.06,3.531]
[1743206509543,0.29702273,619.59,619.06,3.531]
[1743206509747,0.29702273,619.58,619.06,3.531]
[1743206510048,0.29702273,619.57,619.06,3.531]
[1743206510244,0.29702273,619.56,619.06,3.531]
[1743206510446,0.29702273,619.55,619.06,3.531]
[1743206510746,0.29702273,619.54,619.06,3.531]
[1743206510942,0.29702273,619.53,619.06,3.531]
[1743206511140,0.29702273,619.52,619.06,3.531]
[1743206511342,0.29702273,619.51,619.06,3.531]
[1743206511545,0.29702273,619.61,619.06,3.531]
[1743206511740,0.29702273,619.5,619.06,3.531]
[1743206511942,0.29702273,619.49,619.06,3.531]
[1743206512243,0.29702273,619.49,618.63,1.029]
[1743206512244,0.29702273,619.48,618.63,1.029]
[1743206512442,0.29702273,619.47,618.63,1.029]
[1743206512643,0.28116327,619.48,618.63,1.029]
[1743206512842,0.29702273,619.47,618.63,1.029]
[1743206513346,0.28116327,619.48,618.63,1.029]
[1743206513544,0.29702621,619.47,618.63,1.029]
[1743206513948,0.28116327,619.48,618.63,1.029]
[1743206514343,0.32277847,619.62,618.63,1.029]
[1743206514543,0.29697798,619.61,618.63,1.029]
[1743206514948,0.29697798,619.61,618.64,1.052]
[1743206515745,0.28117917,619.6,618.65,1.439]
[1743206516148,0.29697647,619.59,618.65,1.439]
[1743206517550,0.29697647,619.61,618.65,1.439]
[1743206517754,0.29697647,619.6,618.65,1.439]
[1743206517954,0.29697647,619.61,618.65,1.439]
[1743206518157,0.29697647,619.6,618.65,2.663]
[1743206518354,0.29697647,619.61,618.65,2.663]
[1743206518555,0.57815451,619.59,618.65,2.663]
[1743206518754,0.29697647,619.58,618.65,2.663]
[1743206518949,0.28117804,619.59,618.65,2.663]
[1743206520453,0.32277847,619.62,618.65,2.663]
[1743206520649,0.29697922,619.61,618.65,4.169]
[1743206521655,0.28117804,619.6,618.65,4.169]
[1743206521855,0.29697922,619.59,618.65,4.169]
[1743206523655,0.29697922,619.61,618.65,4.169]
[1743206523858,0.29697922,619.6,618.65,4.169]
[1743206524057,0.29697922,619.61,618.65,4.169]
[1743206524254,0.29697922,619.6,618.65,4.169]
[1743206524455,0.28117804,619.6,618.65,4.169]
[1743206524750,0.29697922,619.59,618.65,4.169]
[1743206526556,0.29697922,619.61,618.65,4.169]
[1743206526755,0.28120758,619.58,618.65,4.169]
[1743206526954,0.29702353,619.57,618.65,4.169]
[1743206529461,0.29702353,619.61,618.65,4.169]
[1743206529759,0.32277847,619.62,618.65,4.169]
[1743206529760,0.28120758,619.56,618.65,4.169]
[1743206529963,0.29702353,619.55,618.65,4.169]
[1743206530352,0.29702353,619.55,618.65,5.461]
[1743206532462,0.29702353,619.61,618.65,5.461]
[1743206532769,0.28121439,619.54,618.65,5.461]
[1743206535263,0.32277847,619.62,618.65,5.461]
[1743206535463,0.29701903,619.61,618.65,5.461]
[1743206535863,0.57818117,619.61,618.65,5.461]
[1743206536162,0.29701903,619.6,618.65,5.461]
[1743206538571,0.28116214,619.61,618.65,5.461]
[1743206539973,0.29702249,619.6,618.65,5.461]
[1743206540978,0.29702318,619.59,618.65,5.461]
[1743206541178,0.29702318,619.6,618.65,5.461]
[1743206541582,0.29702318,619.61,618.65,5.461]
[1743206542683,0.28120758,619.6,618.65,5.461]
[1743206542882,0.29702274,619.59,618.65,5.461]
[1743206544484,0.29702274,619.61,618.65,5.461]
[1743206544682,0.2970245,619.6,618.65,5.461]
[1743206544881,0.2970245,619.61,618.65,5.461]
[1743206545081,0.2970245,619.59,618.65,5.461]
[1743206545284,0.2970245,619.58,618.65,5.461]
[1743206545476,0.2970245,619.61,618.65,5.461]
[1743206545683,0.28120758,619.58,618.65,5.461]
[1743206545881,0.29701907,619.57,618.65,5.461]
[1743206546083,0.28120758,619.58,618.65,5.461]
[1743206546277,0.28120758,619.58,618.65,3.955]
[1743206547385,0.32277847,619.62,618.65,3.955]
[1743206547986,0.32277847,619.62,618.65,2.516]
[1743206548388,0.28113147,619.61,618.65,2.516]
[1743206550486,0.32277847,619.62,618.65,2.516]
[1743206551182,0.28110195,619.61,618.65,1.292]
[1743206552481,0.28110195,619.61,618.33,1.093]
[1743206552686,0.28110195,619.61,618.34,0.61624555]
[1743206552886,0.28110195,619.61,618.35,0.61624032]
[1743206553085,0.28110195,619.61,618.36,0.32343618]
[1743206553284,0.32277847,619.62,618.36,0.32343618]
[1743206553486,0.32277847,619.62,618.37,0.2927867]
[1743206554288,0.28112807,619.61,618.37,0.2927867]
[1743206554690,0.28112807,619.61,618.38,0.32342572]
[1743206554889,0.28112807,619.61,618.39,0.2927867]
[1743206555091,0.28112807,619.61,618.4,0.32341526]
[1743206556393,0.32277847,619.62,618.4,0.32341526]
[1743206556996,0.2811099,619.61,618.4,0.32341526]
[1743206557890,0.2811099,619.61,618.41,0.29277273]
[1743206558390,0.2811099,619.61,618.42,0.3234048]
[1743206558588,0.2811099,619.61,618.43,0.29277273]
[1743206558997,0.2811099,619.61,618.44,0.32339434]
[1743206559193,0.2811099,619.61,618.45,0.29277273]
[1743206559390,0.32277847,619.62,618.45,0.29277273]
[1743206559795,0.28119281,619.6,618.45,0.29277273]
[1743206564898,0.29694814,619.59,618.45,0.29277273]
[1743206565097,0.28119281,619.6,618.45,0.29277273]
[1743206565297,0.29694829,619.59,618.45,0.29277273]
[1743206565498,0.29694829,619.61,618.45,0.29277273]
[1743206566300,0.32277847,619.62,618.45,0.29277273]
[1743206566802,0.28118145,619.6,618.46,0.32338388]
[1743206567000,0.28118145,619.6,618.47,0.29277273]
[1743206567301,0.28118145,619.6,618.48,0.32337343]
[1743206567600,0.28118145,619.6,618.49,0.29277273]
[1743206568200,0.28118145,619.6,618.49,0.61614093]
[1743206568400,0.32277847,619.62,618.5,0.29277273]
[1743206569202,0.32277847,619.62,618.49,0.3233682]
[1743206569498,0.281094,619.61,618.5,0.29272583]
[1743206570003,0.281094,619.61,618.49,0.3233682]
[1743206570196,0.29700108,619.6,618.49,0.3233682]
[1743206571203,0.29701075,619.59,618.49,0.3233682]
[1743206571397,0.29701075,619.6,618.49,0.3233682]
[1743206571601,0.29701075,619.61,618.49,0.3233682]
[1743206571902,0.29701075,619.6,618.49,0.3233682]
[1743206572097,0.29701075,619.61,618.49,0.3233682]
[1743206572296,0.29701075,619.6,618.49,0.3233682]
[1743206572500,0.29701075,619.61,618.49,0.3233682]
[1743206572700,0.28122235,619.6,618.49,0.3233682]
[1743206572904,0.29701075,619.59,618.49,0.3233682]
[1743206574501,0.29701075,619.61,618.49,0.3233682]
[1743206575599,0.28122235,619.6,618.49,0.3233682]
[1743206575798,0.29701075,619.59,618.49,0.3233682]
[1743206578504,0.28122235,619.6,618.49,0.3233682]
[1743206579602,0.28122235,619.6,618.5,0.29297673]
[1743206580404,0.32277847,619.62,618.5,0.29297673]
[1743206580601,0.29695044,619.61,618.5,0.29297673]
[1743206581005,0.32277847,619.62,618.5,0.29297673]
[1743206581509,0.28111671,619.61,618.5,0.29297673]
[1743206582908,0.28111671,619.61,618.49,0.3233682]
[1743206583105,0.28111671,619.61,618.5,0.29303669]
[1743206583305,0.32277847,619.62,618.5,0.29303669]
[1743206583907,0.32277847,619.62,618.51,0.32335774]
[1743206584108,0.32277847,619.62,618.52,0.29303669]
[1743206584406,0.28109855,619.61,618.53,0.32334729]
[1743206584606,0.28109855,619.61,618.54,0.29303669]
[1743206584801,0.28109855,619.61,618.55,0.29301098]
[1743206585004,0.28109855,619.61,618.54,0.29301098]
[1743206585201,0.28109855,619.61,618.53,0.32334729]
[1743206585399,0.28109855,619.61,618.54,0.29301939]
[1743206586302,0.32277847,619.62,618.54,0.29301939]
[1743206586608,0.28116214,619.6,618.54,0.29301939]
[1743206587210,0.28116214,619.6,618.53,0.32334729]
[1743206587510,0.28116214,619.6,618.54,0.29289517]
[1743206588612,0.28116214,619.6,618.54,1.62189517]
[1743206588807,0.28116214,619.6,618.55,0.29289517]
[1743206589405,2.47035718,620.29,618.55,0.29289517]
[1743206589710,0.29685012,620.28,618.55,0.29289517]
[1743206590111,0.32244022,620.27,618.57,0.32332638]
[1743206590408,0.29685012,620.26,618.58,0.29289517]
[1743206590608,0.5778783,620.26,618.58,0.29289517]
[1743206590804,0.29685012,620.25,618.58,0.29289517]
[1743206591009,0.32245582,620.24,618.6,0.3233107]
[1743206591208,0.29685012,620.23,618.61,0.29289517]
[1743206591407,0.29685012,620.23,618.62,0.32330024]
[1743206591604,0.29685012,620.23,618.63,0.29289517]
[1743206591910,0.29684936,620.22,618.62,0.32330024]
[1743206592212,0.32247662,620.2,618.62,0.32330024]
[1743206592509,0.29684936,620.19,618.62,0.32330024]
[1743206592705,0.32249221,620.17,618.62,0.32330024]
[1743206592905,0.29684936,620.16,618.62,0.32330024]
[1743206593410,0.32250782,620.14,618.62,0.32330024]
[1743206593710,0.29684936,620.13,618.62,0.32330024]
[1743206594610,0.32251822,620.12,618.62,0.32330024]
[1743206596511,0.57794109,620.11,618.62,0.32330024]
[1743206596809,0.32252862,620.1,618.62,0.32330024]
[1743206597015,0.29689049,620.09,618.62,0.32330024]
[1743206598011,0.32253902,620.08,618.62,0.32330024]
[1743206598211,0.29689049,620.07,618.62,0.32330024]
[1743206598411,0.32254943,620.06,618.62,0.32330024]
[1743206598815,0.29689049,620.05,618.62,0.32330024]
[1743206599010,0.32255983,620.04,618.62,0.32330024]
[1743206599214,0.29689049,620.03,618.62,0.32330024]
[1743206599414,0.32257023,620.02,618.62,0.32330024]
[1743206599615,0.29689049,620.01,618.62,0.32330024]
[1743206599816,0.32258064,620.0,618.62,0.32330024]
[1743206600012,0.29689049,619.99,618.62,0.32330024]
[1743206600213,0.32259105,619.98,618.62,0.32330024]
[1743206600611,0.29690292,619.97,618.62,0.32330024]
[1743206600813,0.32260145,619.96,618.62,0.32330024]
[1743206601117,0.29690292,619.95,618.63,0.29297757]
[1743206601318,0.32261186,619.94,618.63,0.29297757]
[1743206601615,0.29690292,619.93,618.63,0.29297757]
[1743206602013,0.29690292,619.93,618.64,1.077]
[1743206602613,0.28110195,619.92,618.64,1.077]
[1743206602808,0.29690292,619.91,618.64,1.077]
[1743206603411,0.29690292,619.91,618.65,1.483]
[1743206604719,0.29690292,619.9,618.65,1.483]
[1743206605121,0.29690292,619.9,618.65,2.916]
[1743206605516,0.28111103,619.89,618.65,2.916]
[1743206605720,0.29690292,619.88,618.65,2.916]
[1743206605915,0.29690292,619.88,618.65,4.245]
[1743206607620,0.29690292,619.9,618.65,4.245]
[1743206607821,0.29690292,619.89,618.65,4.245]
[1743206608121,0.29690292,619.88,618.65,4.245]
[1743206608320,0.29690292,619.9,618.65,4.245]
[1743206608522,0.28111103,619.87,618.65,4.245]
[1743206608820,0.29690292,619.86,618.65,4.245]
[1743206610719,0.29690292,619.9,618.65,4.245]
[1743206610922,0.29690292,619.89,618.65,4.245]
[1743206611122,0.29690292,619.9,618.65,4.245]
[1743206611318,0.29690292,619.89,618.65,4.245]
[1743206611518,0.29690292,619.9,618.65,4.245]
[1743206611723,0.28110422,619.89,618.65,4.245]
[1743206611923,0.29690292,619.88,618.65,4.245]
[1743206612322,0.29690292,619.88,618.65,5.181]
[1743206613516,0.29690292,619.9,618.65,5.181]
[1743206613723,0.29690292,619.89,618.65,5.181]
[1743206614024,0.29690292,619.88,618.65,5.181]
[1743206614224,0.29690292,619.87,618.65,5.181]
[1743206614524,0.28110422,619.87,618.65,5.181]
[1743206614724,0.2969209,619.86,618.65,5.181]
[1743206616526,0.2969209,619.85,618.65,5.181]
[1743206616831,0.2969209,619.84,618.65,5.181]
[1743206617025,0.2969209,619.9,618.65,5.181]
[1743206617229,0.2969209,619.89,618.65,5.181]
[1743206617430,0.2969209,619.9,618.66,0.29290898]
[1743206617630,0.28107017,619.89,618.66,0.29290898]
[1743206617826,0.28107017,619.89,618.67,0.32327412]
[1743206619427,0.32262747,619.91,618.67,0.32327412]
[1743206619633,0.29685248,619.9,618.68,0.29287471]
[1743206619827,0.29685248,619.9,618.69,0.32326367]
[1743206620734,0.28107017,619.89,618.69,0.32326367]
[1743206620934,0.29685248,619.88,618.69,0.32326367]
[1743206621533,0.28107017,619.89,618.7,1.444]
[1743206621733,0.29685206,619.88,618.71,0.32325322]
[1743206622628,0.29685206,619.87,618.71,0.32325322]
[1743206622937,0.32262747,619.91,618.71,0.32325322]
[1743206623634,0.28100889,619.9,618.71,0.32325322]
[1743206624334,0.28100889,619.9,618.72,1.023]
[1743206624535,0.28100889,619.9,618.73,0.32324277]
[1743206625437,0.32262747,619.91,618.73,0.32324277]
[1743206626738,0.28100662,619.9,618.73,0.32324277]
[1743206628534,0.32262747,619.91,618.73,0.32324277]
[1743206629744,0.28098847,619.9,618.73,0.32324277]
[1743206629940,0.28098847,619.9,618.74,0.29277421]
[1743206630141,0.28098847,619.9,618.75,0.32323232]
[1743206631436,0.32262747,619.91,618.75,0.32323232]
[1743206632542,0.28098166,619.9,618.75,0.32323232]
[1743206633044,0.29681645,619.89,618.76,0.29273957]
[1743206633238,0.29681645,619.89,618.77,0.32322187]
[1743206633439,0.29681645,619.89,618.78,0.29273957]
[1743206633639,0.29681645,619.89,618.78,0.61595622]
[1743206633936,0.28098166,619.9,618.79,0.29273957]
[1743206634138,0.28098166,619.9,618.78,0.32321665]
[1743206634442,0.32262747,619.91,618.79,0.29269773]
[1743206634643,0.32262747,619.91,618.78,0.32321665]
[1743206635642,0.28102023,619.9,618.78,0.32321665]
[1743206637442,0.32262747,619.91,618.78,0.32321665]
[1743206638744,0.28097372,619.9,618.78,0.32321665]
[1743206640446,0.32262747,619.91,618.78,0.32321665]
[1743206641542,0.28097258,619.9,618.78,1.69621665]
[1743206643447,0.32262747,619.91,618.78,1.69621665]
[1743206644543,0.28096691,619.9,618.78,1.69621665]
[1743206645448,0.28096691,619.9,618.78,2.97521665]
[1743206646549,0.32262747,619.91,618.78,2.97521665]
[1743206647643,0.28095444,619.9,618.78,2.97521665]
[1743206649554,0.32262747,619.91,618.78,2.97521665]
[1743206650555,0.28095217,619.9,618.78,2.97521665]
[1743206652757,0.28095217,619.9,618.78,4.37121665]
[1743206654153,0.28095217,619.9,618.79,0.29269681]
[1743206655049,0.28095217,619.9,618.78,4.37121665]
[1743206655455,0.32262747,619.91,618.79,0.29269611]
[1743206656156,0.32262747,619.91,618.8,0.29270339]
[1743206656350,0.32262747,619.91,618.78,4.37121665]
[1743206656754,0.28098506,619.9,618.78,4.37121665]
[1743206657359,0.28098506,619.9,618.79,0.29272737]
[1743206657960,0.28098506,619.9,618.79,1.23672737]
[1743206658162,0.28098506,619.9,618.8,0.29272737]
[1743206658463,0.32262747,619.91,618.8,0.29272737]
[1743206658663,0.32262747,619.91,618.79,0.944]
[1743206659564,0.28099187,619.9,618.79,0.944]
[1743206661463,0.32262747,619.91,618.79,0.944]
[1743206662764,0.28099187,619.9,618.79,2.092]
[1743206664364,0.32262747,619.91,618.79,2.092]
[1743206665566,0.28098053,619.9,618.79,2.092]
[1743206667567,0.32262747,619.91,618.79,2.092]
[1743206668664,0.28098279,619.9,618.79,2.092]
[1743206670467,0.32262747,619.91,618.79,2.092]
[1743206670870,0.28104293,619.89,618.79,2.092]
[1743206672368,0.28104293,619.89,618.79,3.248]
[1743206672967,0.28104293,619.89,618.8,0.29278927]
[1743206673473,0.32262747,619.91,618.8,0.29278927]
[1743206673672,0.28104293,619.88,618.8,0.29278927]
[1743206673974,0.28104293,619.88,618.79,3.248]
[1743206676373,0.32262747,619.91,618.79,3.248]
[1743206676878,0.28101116,619.9,618.79,3.248]
[1743206678673,0.29684873,619.89,618.79,3.248]
[1743206679379,0.29685216,619.88,618.79,4.646]
[1743206679581,0.29685216,619.9,618.79,4.646]
[1743206679783,0.28107811,619.88,618.79,4.646]
[1743206679978,0.29685216,619.87,618.79,4.646]
[1743206681079,0.29685216,619.87,618.79,6.183]
[1743206685683,0.29685216,619.9,618.79,6.183]
[1743206685883,0.29685216,619.89,618.79,6.183]
[1743206686083,0.29685216,619.9,618.79,6.183]
[1743206686284,0.32262747,619.91,618.79,6.183]
[1743206686685,0.28109514,619.89,618.79,6.183]
[1743206688485,0.32262747,619.91,618.79,6.183]
[1743206689686,0.28093856,619.9,618.79,6.183]
[1743206691481,0.32262747,619.91,618.79,6.183]
[1743206692586,0.28091702,619.9,618.79,6.183]
[1743206694390,0.32262747,619.91,618.79,6.183]
[1743206694991,0.32262747,619.91,618.79,6.50621142]
[1743206695591,0.28091362,619.9,618.79,6.50621142]
[1743206697491,0.32262747,619.91,618.79,6.50621142]
[1743206698593,0.28091475,619.9,618.79,6.50621142]
[1743206698793,0.28091475,619.9,618.8,0.3232062]
[1743206700494,0.32262747,619.91,618.8,0.3232062]
[1743206701594,0.28090795,619.9,618.8,1.5312062]
[1743206701990,0.28090795,619.9,618.81,0.29262782]
[1743206702189,0.28090795,619.9,618.82,0.32319575]
[1743206702394,0.28090795,619.9,618.83,0.29262782]
[1743206702595,0.28090795,619.9,618.84,0.32318531]
[1743206702796,0.28090795,619.9,618.85,0.29262782]
[1743206703196,0.28090795,619.9,618.85,0.61580791]
[1743206703389,0.32262747,619.91,618.85,0.61580791]
[1743206703596,0.32262747,619.91,618.86,0.29262782]
[1743206704297,2.47035718,620.6,618.86,0.29262782]
[1743206704498,0.28093516,619.9,618.86,0.29262782]
[1743206704892,2.47035718,620.6,618.86,0.29262782]
[1743206705097,0.32227915,620.58,618.86,0.29262782]
[1743206705294,0.29672356,620.57,618.86,0.29262782]
[1743206705694,0.57764851,620.57,618.87,0.32316964]
[1743206705899,0.32229473,620.55,618.88,0.29262782]
[1743206706199,0.29672356,620.54,618.89,0.3231592]
[1743206706400,0.29672356,620.54,618.9,0.29262782]
[1743206706599,0.32231032,620.52,618.9,0.29262782]
[1743206706897,0.29672356,620.51,618.9,0.29262782]
[1743206707599,0.28092836,620.5,618.9,0.29262782]
[1743206707795,0.29672356,620.49,618.9,0.29262782]
[1743206709700,0.29672356,620.51,618.9,0.29262782]
[1743206709901,0.29672356,620.5,618.9,0.29262782]
[1743206710202,0.29672356,620.49,618.9,0.29262782]
[1743206710401,0.32231032,620.52,618.89,0.3231592]
[1743206710603,0.28092836,620.48,618.9,0.29258451]
[1743206710803,0.29673254,620.47,618.9,0.29258451]
[1743206711098,0.28092836,620.48,618.89,0.3231592]
[1743206711304,0.29673664,620.47,618.9,0.29259685]
[1743206711604,0.29673631,620.46,618.91,0.29259655]
[1743206711802,0.29673631,620.47,618.9,0.29259655]
[1743206712103,0.61907779,620.46,618.91,0.61574531]
[1743206712302,0.61908299,620.45,618.92,0.61574009]
[1743206712502,0.61908818,620.44,618.93,0.61573486]
[1743206712698,0.61909338,620.43,618.94,0.29259655]
[1743206713004,0.61909858,620.42,618.94,0.29259655]
[1743206713202,0.61910377,620.41,618.94,0.29259655]
[1743206713396,0.61910897,620.4,618.94,0.29259655]
[1743206713599,0.61911416,620.39,618.94,0.29259655]
[1743206713799,0.61911936,620.38,618.94,0.29259655]
[1743206714107,0.61912459,620.37,618.95,0.29258907]
[1743206714302,0.61912978,620.36,618.94,0.29258907]
[1743206714499,0.61913498,620.35,618.94,0.29258907]
[1743206714704,0.28093629,620.4,618.94,0.29258907]
[1743206714705,0.61914018,620.34,618.94,0.29258907]
[1743206714905,0.61914538,620.33,618.94,0.29258907]
[1743206715106,0.61915057,620.32,618.94,0.29258907]
[1743206715400,0.61915577,620.31,618.94,0.29258907]
[1743206715603,0.61916097,620.3,618.94,0.29258907]
[1743206715800,0.61916617,620.29,618.94,0.29258907]
[1743206716001,0.29673634,620.28,618.94,0.29258907]
[1743206716403,0.2967371,620.27,618.95,0.29259614]
[1743206716603,0.2967371,620.26,618.96,0.29259614]
[1743206716908,0.2967371,620.25,618.97,0.29259614]
[1743206717103,0.2967371,620.28,618.94,0.29259614]
[1743206717305,0.32242983,620.29,618.93,0.32313831]
[1743206717506,0.29673619,620.28,618.94,0.29258641]
[1743206718402,0.32244022,620.27,618.94,0.29258641]
[1743206718607,0.29673619,620.26,618.93,0.32313831]
[1743206718808,0.32245062,620.25,618.93,0.32313831]
[1743206719009,0.29673619,620.24,618.93,0.32313831]
[1743206719410,0.32246102,620.23,618.93,0.32313831]